bitfinex-derivatives/quotes_BTCF0:USTF0_20251115
["timestamp","ask_amount","ask_price","bid_price","bid_amount"]
[1763219683043,0.04602,96363.0,96362.0,0.08163175]
[1763219683339,0.04602,96363.0,96362.0,0.04442]
[1763219684629,0.04602,96363.0,96362.0,0.04542]
[1763219690446,0.02313,96363.0,96362.0,0.04542]
[1763219690649,0.40682,96368.0,96367.0,0.04442]
[1763219692155,0.04602,96368.0,96367.0,0.04442]
[1763219693249,0.04602,96368.0,96367.0,0.04542]
[1763219694457,0.04602,96368.0,96367.0,0.04442]
[1763219695551,0.40682,96368.0,96367.0,0.04442]
[1763219699359,0.3608,96368.0,96367.0,0.04442]
[1763219700162,0.40627,96368.0,96367.0,0.04442]
[1763219700754,0.04547,96368.0,96367.0,0.04442]
[1763219701467,0.04547,96361.0,96360.0,0.05943]
[1763219702164,0.04547,96361.0,96360.0,0.04612]
[1763219702965,0.04547,96361.0,96360.0,0.05995]
[1763219703852,0.04547,96361.0,96360.0,0.06095]
[1763219706759,0.04547,96361.0,96360.0,0.04712]
[1763219708754,0.04547,96361.0,96360.0,0.06095]
[1763219709160,0.04547,96361.0,96360.0,0.0981373]
[1763219709359,0.40627,96368.0,96367.0,0.04612]
[1763219714665,0.3608,96368.0,96367.0,0.04612]
[1763219714866,0.38399,96368.0,96367.0,0.04612]
[1763219715068,0.40535,96368.0,96367.0,0.04612]
[1763219723875,0.04455,96361.0,96350.0,0.09419392]
[1763219724174,0.04455,96356.0,96355.0,0.41827]
[1763219725075,0.04455,96356.0,96355.0,0.04416]
[1763219725373,0.04455,96356.0,96355.0,0.05713]
[1763219725572,0.04455,96356.0,96355.0,0.05813]
[1763219725966,0.04455,96356.0,96355.0,0.05913]
[1763219726670,0.04455,96356.0,96355.0,0.05813]
[1763219726973,0.04455,96356.0,96355.0,0.05713]
[1763219727174,0.04455,96356.0,96355.0,0.05813]
[1763219730978,0.00219803,96360.0,96359.0,0.04419]
[1763219731375,0.40467,96368.0,96367.0,0.04419]
[1763219732376,0.04387,96368.0,96367.0,0.04419]
[1763219739772,0.00219803,96370.0,96369.0,0.04419]
[1763219740479,0.02463803,96370.0,96369.0,0.04419]
[1763219741775,0.04606803,96370.0,96369.0,0.04419]
[1763219742681,0.04387,96361.0,96360.0,0.05802]
[1763219744280,0.04387,96361.0,96360.0,0.05902]
[1763219746277,0.04387,96361.0,96360.0,0.001]
[1763219746473,0.04387,96361.0,96360.0,0.02281]
[1763219746670,0.04387,96361.0,96360.0,0.04519]
[1763219747170,0.04387,96361.0,96360.0,0.05902]
[1763219747371,0.04387,96361.0,96360.0,0.04519]
[1763219748773,0.04387,96361.0,96360.0,0.05902]
[1763219749182,0.04387,96361.0,96360.0,0.02281]
[1763219749380,0.04387,96361.0,96360.0,0.04519]
[1763219749685,0.04387,96361.0,96360.0,0.04419]
[1763219749984,0.04387,96361.0,96360.0,0.04519]
[1763219752580,0.04387,96361.0,96360.0,0.05902]
[1763219753280,0.04387,96361.0,96360.0,0.05802]
[1763219753485,0.04387,96361.0,96360.0,0.05902]
[1763219755882,0.04579551,96361.0,96360.0,0.05902]
[1763219756779,0.04579551,96361.0,96360.0,0.05802]
[1763219756980,0.04579551,96361.0,96360.0,0.05902]
[1763219757489,0.04579551,96361.0,96360.0,0.05802]
[1763219757683,0.04579551,96361.0,96360.0,0.05902]
[1763219760580,0.04579551,96361.0,96360.0,0.05802]
[1763219760791,0.00192551,96361.0,96360.0,0.05902]
[1763219760985,0.04656551,96361.0,96360.0,0.05902]
[1763219761386,0.04656551,96361.0,96360.0,0.05802]
[1763219761581,0.04656551,96361.0,96360.0,0.05902]
[1763219762885,0.04656551,96361.0,96360.0,0.04519]
[1763219763074,0.04656551,96361.0,96352.0,0.01346]
[1763219763075,0.04464,96354.0,96353.0,0.04594561]
[1763219763990,0.04656551,96354.0,96353.0,0.04594561]
[1763219764686,0.04667837,96354.0,96353.0,0.00115561]
[1763219764989,0.04464,96348.0,96340.0,0.01346]
[1763219765178,0.04464,96336.0,96335.0,0.05925]
[1763219765785,0.04667837,96336.0,96335.0,0.05925]
[1763219766184,0.04677934,96336.0,96335.0,0.05925]
[1763219766989,0.04677934,96336.0,96335.0,0.06025]
[1763219767389,0.04677934,96336.0,96335.0,0.05925]
[1763219767690,0.04677934,96336.0,96335.0,0.06025]
[1763219769691,0.00213934,96336.0,96335.0,0.06025]
[1763219771486,0.00219803,96340.0,96339.0,0.04421]
[1763219771687,0.0001557,96345.0,96344.0,0.04263]
[1763219772795,0.0001557,96345.0,96344.0,0.04363]
[1763219773190,0.0001557,96345.0,96344.0,0.04463]
[1763219775098,0.0226257,96345.0,96344.0,0.04463]
[1763219776393,0.0451557,96345.0,96344.0,0.04463]
[1763219777998,0.0451557,96345.0,96344.0,0.002]
[1763219778496,0.045,96331.0,96330.0,0.05609]
[1763219778693,0.045,96331.0,96330.0,0.04263]
[1763219778899,0.045,96327.0,96326.0,0.04304524]
[1763219779493,0.044,96327.0,96326.0,0.04304524]
[1763219779699,0.043,96327.0,96326.0,0.04304524]
[1763219780198,0.4038,96327.0,96326.0,0.04304524]
[1763219780398,0.4038,96327.0,96326.0,0.00041524]
[1763219781094,0.4038,96327.0,96326.0,0.02258524]
[1763219781290,0.4038,96327.0,96326.0,0.04404524]
[1763219781599,0.4038,96327.0,96326.0,0.04604524]
[1763219787501,0.4038,96327.0,96326.0,0.04504524]
[1763219787703,0.4038,96327.0,96326.0,0.04604524]
[1763219788396,0.4038,96327.0,96326.0,0.04504524]
[1763219788600,0.4038,96327.0,96326.0,0.04604524]
[1763219789398,0.4038,96327.0,96326.0,0.04404524]
[1763219789700,0.4038,96327.0,96326.0,0.04504524]
[1763219793100,0.4038,96327.0,96326.0,0.00241524]
[1763219795611,0.4038,96327.0,96326.0,0.02343524]
[1763219795903,0.4038,96327.0,96326.0,0.00241524]
[1763219804607,0.04611,96306.0,96305.0,0.05667]
[1763219806214,0.04611,96306.0,96305.0,0.05867]
[1763219807012,0.04611,96306.0,96305.0,0.06067]
[1763219808310,0.40691,96306.0,96305.0,0.004]
[1763219810022,0.04611,96297.0,96296.0,0.0439857]
[1763219810319,0.40691,96297.0,96296.0,0.0439857]
[1763219811112,0.40691,96297.0,96296.0,0.0001557]
[1763219812314,0.40691,96297.0,96296.0,0.0021557]
[1763219812520,0.40691,96297.0,96296.0,0.0041557]
[1763219813622,0.40691,96297.0,96296.0,0.0031557]
[1763219814122,0.40691,96297.0,96296.0,0.0021557]
[1763219814320,0.40691,96297.0,96296.0,0.0031557]
[1763219815624,0.40691,96297.0,96296.0,0.0001557]
[1763219815920,0.40691,96297.0,96296.0,0.0031557]
[1763219816321,0.40691,96297.0,96296.0,0.0021557]
[1763219816824,0.40691,96297.0,96296.0,0.0231757]
[1763219818624,0.40691,96297.0,96296.0,0.0459857]
[1763219819226,0.40691,96297.0,96296.0,0.0449857]
[1763219819420,0.40691,96297.0,96296.0,0.0459857]
[1763219820525,0.40691,96297.0,96296.0,0.0021557]
[1763219820922,0.40691,96297.0,96296.0,0.0239757]
[1763219821722,0.38407,96297.0,96296.0,0.0460257]
[1763219821927,0.40618,96297.0,96296.0,0.0460257]
[1763219825029,0.38407,96297.0,96296.0,0.0460257]
[1763219826324,0.33584706,96297.0,96296.0,0.0460257]
[1763219826631,0.00219803,96300.0,96299.0,0.04387]
[1763219828032,0.04399,96306.0,96305.0,0.05749]
[1763219831828,0.04399,96306.0,96305.0,0.02182]
[1763219832032,0.04399,96306.0,96300.0,0.01362]
[1763219832033,0.04484,96297.0,96296.0,0.0217957]
[1763219832931,0.04484,96297.0,96296.0,0.0442357]
[1763219833137,0.04484,96297.0,96296.0,0.0011557]
[1763219836928,0.04484,96297.0,96296.0,0.0452357]
[1763219843731,0.04703803,96300.0,96299.0,0.04408]
[1763219844939,0.04703803,96300.0,96299.0,0.04508]
[1763219849943,0.02399803,96300.0,96299.0,0.04508]
[1763219850142,0.04657803,96300.0,96299.0,0.04508]
[1763219850644,0.02399803,96300.0,96299.0,0.04508]
[1763219851447,0.04657803,96300.0,96299.0,0.04508]
[1763219856149,0.06276504,96300.0,96299.0,0.04508]
[1763219860548,0.08076582,96300.0,96299.0,0.04508]
[1763219863942,0.44156582,96300.0,96299.0,0.04508]
[1763219864547,0.44200148,96300.0,96299.0,0.04508]
[1763219867956,0.03462345,96300.0,96299.0,0.04508]
[1763219872861,0.03462345,96300.0,96299.0,0.10082315]
[1763219873261,0.03462345,96300.0,96299.0,0.04508]
[1763219875960,0.0001557,96315.0,96314.0,0.04565]
[1763219876165,0.0001557,96315.0,96314.0,0.40645]
[1763219876463,0.40518,96332.0,96331.0,0.04565]
[1763219877067,0.3608,96332.0,96331.0,0.04565]
[1763219878263,0.40538,96340.0,96339.0,0.04509]
[1763219878470,0.40757803,96340.0,96339.0,0.04509]
[1763219879968,0.36299803,96340.0,96339.0,0.04509]
[1763219880170,0.00219803,96340.0,96339.0,0.04509]
[1763219880365,0.04684803,96340.0,96339.0,0.04509]
[1763219881468,0.0001557,96341.0,96340.0,0.05718]
[1763219881670,0.00025943,96366.0,96361.0,0.04369]
[1763219881968,0.00025943,96366.0,96365.0,0.05718]
[1763219890573,0.0001557,96375.0,96365.0,0.05718]
[1763219890574,0.0001557,96375.0,96374.0,0.04369]
[1763219890770,0.0001557,96375.0,96374.0,0.40449]
[1763219891983,0.0001557,96375.0,96374.0,0.5083199]
[1763219892377,0.0011557,96375.0,96374.0,0.5083199]
[1763219894972,0.04352932,96406.0,96405.0,0.04509]
[1763219895180,0.04352932,96406.0,96405.0,0.02325]
[1763219895378,0.04352932,96406.0,96405.0,0.04509]
[1763219896179,0.04552932,96406.0,96405.0,0.04509]
[1763219896381,0.04752932,96406.0,96405.0,0.04509]
[1763219897283,0.04752932,96406.0,96396.0,0.00015559]
[1763219897284,0.04327,96397.0,96396.0,0.00015559]
[1763219897481,0.40407,96397.0,96396.0,0.00015559]
[1763219898188,0.40407,96397.0,96396.0,0.02340559]
[1763219898384,0.40507,96397.0,96396.0,0.02340559]
[1763219898788,0.40707,96397.0,96396.0,0.04524559]
[1763219898991,0.40707,96397.0,96396.0,0.02340559]
[1763219899285,0.40707,96397.0,96396.0,0.00015559]
[1763219901094,0.40707,96397.0,96396.0,0.02340559]
[1763219902385,0.40707,96397.0,96396.0,0.00015559]
[1763219902584,0.04327,96379.0,96378.0,0.04509]
[1763219904388,0.04427,96379.0,96378.0,0.04509]
[1763219904989,0.04327,96370.0,96369.0,0.04524559]
[1763219905190,0.04546803,96370.0,96369.0,0.00015559]
[1763219906191,0.04546803,96370.0,96369.0,0.04524559]
[1763219909400,0.04646803,96370.0,96369.0,0.04524559]
[1763219910301,0.04746803,96370.0,96369.0,0.04524559]
[1763219912888,0.04746803,96370.0,96369.0,0.00015559]
[1763219913404,0.04633,96349.0,96348.0,0.05847]
[1763219913702,0.04633,96344.0,96343.0,0.40605]
[1763219914495,0.04633,96337.0,96336.0,0.05884]
[1763219914995,0.04633,96337.0,96336.0,0.04525]
[1763219915303,0.04633,96337.0,96334.0,0.00015568]
[1763219915304,0.04633,96335.0,96334.0,0.00015568]
[1763219915694,0.04633,96335.0,96334.0,0.02245568]
[1763219915900,0.04633,96335.0,96334.0,0.04540568]
[1763219917699,0.04633,96335.0,96334.0,0.05999568]
[1763219918313,0.023,96335.0,96334.0,0.06099568]
[1763219919711,0.04633,96335.0,96334.0,0.06099568]
[1763219921703,0.40713,96343.0,96342.0,0.04525]
[1763219922706,0.3838,96343.0,96342.0,0.04525]
[1763219922904,0.3608,96343.0,96342.0,0.04525]
[1763219924913,0.40713,96343.0,96342.0,0.04525]
[1763219928110,0.3608,96343.0,96342.0,0.04525]
[1763219928305,0.40713,96343.0,96342.0,0.04525]
[1763219928810,0.04633,96343.0,96342.0,0.04525]
[1763219932614,0.04633,96343.0,96335.0,0.40605]
[1763219932615,0.04633,96336.0,96335.0,0.40605]
[1763219932809,0.04633,96335.0,96334.0,0.04540568]
[1763219934819,0.04633,96335.0,96334.0,0.04640568]
[1763219935114,0.04633,96335.0,96334.0,0.00115568]
[1763219935312,0.04633,96335.0,96334.0,0.04640568]
[1763219936920,0.04633,96335.0,96334.0,0.04740568]
[1763219941229,0.04633,96335.0,96334.0,0.00215568]
[1763219941230,0.40713,96335.0,96334.0,0.00215568]
[1763219943013,0.04387,96327.0,96326.0,0.00025954]
[1763219943217,0.40467,96327.0,96326.0,0.00025954]
[1763219943524,0.02107,96310.0,96307.0,0.03723799]
[1763219943714,0.04387,96308.0,96307.0,0.08088799]
[1763219944323,0.04187,96308.0,96307.0,0.04365]
[1763219944629,0.04387,96306.0,96304.0,0.03723799]
[1763219944923,0.00219803,96310.0,96299.0,0.05588125]
[1763219944924,0.04187,96300.0,96299.0,0.08088799]
[1763219945226,0.04406803,96300.0,96299.0,0.04365]
[1763219946026,0.04406803,96300.0,96299.0,0.04565]
[1763219946429,0.04206803,96300.0,96299.0,0.04565]
[1763219947121,0.04206803,96300.0,96299.0,0.04765]
[1763219949426,0.00219803,96300.0,96299.0,0.04765]
[1763219950433,0.00219803,96300.0,96299.0,0.06048]
[1763219951128,0.00219803,96300.0,96299.0,0.05848]
[1763219951330,0.40222,96312.0,96311.0,0.04365]
[1763219953121,0.04142,96312.0,96311.0,0.04365]
[1763219954341,0.04242,96312.0,96311.0,0.04365]
[1763219954827,0.04142,96312.0,96311.0,0.04365]
[1763219955031,0.04242,96312.0,96311.0,0.04365]
[1763219955533,0.04142,96312.0,96311.0,0.04365]
[1763219955725,0.02086568,96317.0,96316.0,0.04376]
[1763219955927,0.04157568,96317.0,96316.0,0.04376]
[1763219956532,0.00015568,96317.0,96316.0,0.04376]
[1763219956729,0.04157568,96317.0,96316.0,0.04376]
[1763219957839,0.04257568,96317.0,96316.0,0.04376]
[1763219958537,0.04157568,96317.0,96316.0,0.04376]
[1763219960739,0.04257568,96317.0,96316.0,0.04376]
[1763219961138,0.04157568,96317.0,96316.0,0.04376]
[1763219962327,0.04142,96307.0,96306.0,0.04376]
[1763219962928,0.04142,96307.0,96306.0,0.05733]
[1763219964137,0.04142,96303.0,96302.0,0.02259]
[1763219964442,0.04361803,96300.0,96299.0,0.02259]
[1763219964628,0.04361803,96300.0,96299.0,0.04376]
[1763219969944,0.02290803,96300.0,96299.0,0.04376]
[1763219970141,0.04361803,96300.0,96299.0,0.04376]
[1763219970341,0.00219803,96300.0,96299.0,0.04376]
[1763219971138,0.3608,96312.0,96309.0,0.04508]
[1763219971343,0.3608,96312.0,96311.0,0.04508]
[1763219971545,0.04157568,96317.0,96316.0,0.04508]
[1763219974347,0.04257568,96317.0,96316.0,0.04508]
[1763219974547,0.00115568,96317.0,96313.0,0.02225]
[1763219974745,0.04142,96314.0,96313.0,0.05895]
[1763219975543,0.02186568,96317.0,96316.0,0.04508]
[1763219975749,0.04257568,96317.0,96316.0,0.04508]
[1763219977147,0.04157568,96317.0,96316.0,0.04508]
[1763219977443,0.04257568,96317.0,96316.0,0.04508]
[1763219978366,0.04157568,96317.0,96316.0,0.04508]
[1763219978652,0.04257568,96317.0,96316.0,0.04508]
[1763219979649,0.04142,96307.0,96306.0,0.02225]
[1763219979954,0.04142,96301.0,96300.0,0.05895]
[1763219980653,0.04142,96299.0,96294.0,0.05006799]
[1763219980847,0.40222,96299.0,96292.0,0.03723799]
[1763219981042,0.40222,96299.0,96288.0,0.01387]
[1763219981952,0.40222,96299.0,96298.0,0.02240568]
[1763219982159,0.40222,96299.0,96298.0,0.00015568]
[1763219982752,0.40222,96299.0,96298.0,0.02240568]
[1763219983255,0.40222,96299.0,96298.0,0.00015568]
[1763219983654,0.40222,96299.0,96298.0,0.04523568]
[1763219983855,0.40322,96299.0,96298.0,0.04523568]
[1763219987145,0.40222,96299.0,96298.0,0.04523568]
[1763219988154,0.40322,96299.0,96298.0,0.04523568]
[1763219990162,0.40222,96299.0,96298.0,0.04523568]
[1763219991164,0.40322,96299.0,96298.0,0.04523568]
[1763219992359,0.3618,96299.0,96298.0,0.04523568]
[1763219992865,0.3608,96299.0,96298.0,0.04523568]
[1763219996069,0.00219803,96300.0,96299.0,0.04508]
[1763220001363,0.00219803,96300.0,96299.0,0.04608]
[1763220001962,0.40441803,96300.0,96299.0,0.02225]
[1763220002162,0.04142,96299.0,96298.0,0.00015568]
[1763220002764,0.04142,96296.0,96295.0,0.00467312]
[1763220003072,0.04142,96284.0,96283.0,0.00013305]
[1763220003267,0.40222,96284.0,96283.0,0.00013305]
[1763220005170,0.40222,96284.0,96283.0,0.00113305]
[1763220005771,0.40222,96284.0,96283.0,0.00213305]
[1763220006371,0.40222,96284.0,96283.0,0.04627305]
[1763220009872,0.04142,96284.0,96283.0,0.04627305]
[1763220010074,0.04157577,96293.0,96292.0,0.04414]
[1763220011172,0.04157577,96293.0,96292.0,0.04514]
[1763220015076,0.00015577,96293.0,96292.0,0.04514]
[1763220019373,0.00015577,96293.0,96292.0,0.40594]
[1763220021077,0.04157577,96293.0,96292.0,0.40594]
[1763220021470,0.04157577,96293.0,96292.0,0.04514]
[1763220022075,0.04157577,96293.0,96292.0,0.001]
[1763220027486,0.04157577,96293.0,96292.0,0.0455]
[1763220028287,0.04157577,96293.0,96292.0,0.02349]
[1763220028596,0.04157577,96293.0,96292.0,0.001]
[1763220028784,0.04157577,96293.0,96292.0,0.04534]
[1763220029582,0.04157577,96293.0,96292.0,0.05876]
[1763220029583,0.00015577,96293.0,96292.0,0.05876]
[1763220033707,0.38151,96315.0,96314.0,0.04434]
[1763220033908,0.40222,96315.0,96314.0,0.04434]
[1763220034399,0.3608,96315.0,96314.0,0.04434]
[1763220035106,0.38151,96315.0,96314.0,0.04434]
[1763220035601,0.38251,96315.0,96314.0,0.04434]
[1763220035809,0.40322,96315.0,96314.0,0.04434]
[1763220035994,0.40222,96315.0,96314.0,0.04434]
[1763220038410,0.40322,96315.0,96314.0,0.04434]
[1763220038706,0.04142,96307.0,96306.0,0.05776]
[1763220041508,0.04242,96307.0,96306.0,0.05776]
[1763220042009,0.04142,96307.0,96306.0,0.05776]
[1763220042212,0.04242,96307.0,96306.0,0.05776]
[1763220042811,0.04142,96307.0,96306.0,0.05776]
[1763220048017,0.04361803,96310.0,96309.0,0.04434]
[1763220074440,0.3608,96315.0,96314.0,0.04489]
[1763220074643,0.00219803,96320.0,96319.0,0.04489]
[1763220074837,0.02290803,96320.0,96319.0,0.04489]
[1763220075434,0.00219803,96320.0,96319.0,0.04489]
[1763220075742,0.04361803,96320.0,96319.0,0.04489]
[1763220075928,0.02290803,96320.0,96319.0,0.04489]
[1763220076341,0.04361803,96320.0,96319.0,0.04489]
[1763220076741,0.04461803,96320.0,96319.0,0.04489]
[1763220076946,0.02390803,96320.0,96319.0,0.04489]
[1763220077148,0.00319803,96320.0,96319.0,0.04489]
[1763220078239,0.001,96320.0,96319.0,0.04489]
[1763220078633,0.04461803,96320.0,96319.0,0.04489]
[1763220080342,0.04361803,96320.0,96319.0,0.04489]
[1763220082650,0.00219803,96320.0,96316.0,0.02199]
[1763220082848,0.04142,96313.0,96312.0,0.04489]
[1763220083248,0.04142,96313.0,96312.0,0.05822]
[1763220084243,0.04242,96313.0,96312.0,0.05822]
[1763220087160,0.04142,96313.0,96312.0,0.05822]
[1763220087460,0.04242,96313.0,96312.0,0.05822]
[1763220087849,0.04142,96313.0,96312.0,0.05822]
[1763220090659,0.04242,96313.0,96312.0,0.05822]
[1763220092254,0.04142,96313.0,96312.0,0.05822]
[1763220092561,0.04242,96313.0,96312.0,0.05822]
[1763220093957,0.04142,96313.0,96312.0,0.05822]
[1763220094157,0.04242,96313.0,96312.0,0.05822]
[1763220095452,0.02171,96313.0,96312.0,0.05822]
[1763220095853,0.04242,96313.0,96312.0,0.05822]
[1763220096647,0.04142,96313.0,96312.0,0.05822]
[1763220096853,0.04242,96313.0,96312.0,0.05822]
[1763220098062,0.001,96313.0,96312.0,0.05822]
[1763220098465,0.02171,96313.0,96312.0,0.05822]
[1763220098664,0.04242,96313.0,96312.0,0.05822]
[1763220102170,0.04142,96313.0,96312.0,0.05822]
[1763220102369,0.04242,96313.0,96312.0,0.05822]
[1763220102971,0.04142,96313.0,96312.0,0.05822]
[1763220103267,0.04242,96313.0,96312.0,0.05822]
[1763220103862,0.04142,96307.0,96306.0,0.05732]
[1763220104062,0.04142,96307.0,96306.0,0.0439]
[1763220105961,0.04242,96307.0,96306.0,0.0439]
[1763220110271,0.04142,96307.0,96306.0,0.0439]
[1763220110467,0.04242,96307.0,96306.0,0.0439]
[1763220113071,0.04142,96307.0,96306.0,0.0439]
[1763220113274,0.04242,96307.0,96306.0,0.0439]
[1763220113968,0.04142,96306.0,96305.0,0.00015577]
[1763220114270,0.04142,96306.0,96305.0,0.04405577]
[1763220114461,0.04242,96307.0,96306.0,0.0439]
[1763220115472,0.02171,96307.0,96306.0,0.0439]
[1763220115868,0.00219803,96310.0,96309.0,0.0439]
[1763220116073,0.02290803,96310.0,96309.0,0.0439]
[1763220118580,0.04361803,96310.0,96309.0,0.0439]
[1763220119375,0.00219803,96310.0,96309.0,0.0439]
[1763220121383,0.3608,96317.0,96316.0,0.05752]
[1763220122683,0.3618,96317.0,96316.0,0.05752]
[1763220123383,0.38251,96317.0,96316.0,0.05752]
[1763220124689,0.3618,96317.0,96316.0,0.05752]
[1763220125194,0.3608,96317.0,96316.0,0.05752]
[1763220125388,0.3618,96317.0,96316.0,0.05752]
[1763220126686,0.40322,96317.0,96316.0,0.05752]
[1763220128999,0.40222,96317.0,96316.0,0.05752]
[1763220130696,0.40222,96317.0,96316.0,0.02245]
[1763220131391,0.40222,96317.0,96316.0,0.04354]
[1763220132091,0.40222,96317.0,96316.0,0.05676]
[1763220135002,0.40222,96317.0,96316.0,0.04354]
[1763220138094,0.05251,96284.0,96277.0,0.05588125]
[1763220138293,0.04488,96264.0,96263.0,0.04578]
[1763220138590,0.40568,96264.0,96263.0,0.04578]
[1763220138897,0.42818948,96264.0,96263.0,0.02262]
[1763220139102,0.00219803,96260.0,96256.0,0.04578]
[1763220139396,0.04488,96257.0,96256.0,0.04578]
[1763220139596,0.06738948,96257.0,96256.0,0.04578]
[1763220140798,0.06738948,96257.0,96256.0,0.04678]
[1763220140999,0.04488,96257.0,96256.0,0.04678]
[1763220141296,0.04488,96257.0,96256.0,0.04578]
[1763220143188,0.04488,96257.0,96256.0,0.04678]
[1763220144892,0.04488,96257.0,96256.0,0.04578]
[1763220146002,0.04488,96257.0,96256.0,0.02262]
[1763220146196,0.04488,96257.0,96254.0,0.00010472]
[1763220146197,0.04488,96256.0,96254.0,0.00010472]
[1763220146403,0.06807432,96256.0,96255.0,0.00267387]
[1763220146802,0.04488,96255.0,96254.0,0.00010472]
[1763220146992,0.04488,96247.0,96246.0,0.05925975]
[1763220147189,0.40581494,96247.0,96246.0,0.05925975]
[1763220147602,0.36093494,96247.0,96246.0,0.05925975]
[1763220147903,0.40454494,96247.0,96246.0,0.05925975]
[1763220148105,0.38262494,96247.0,96246.0,0.05925975]
[1763220148299,0.36093494,96247.0,96246.0,0.06025975]
[1763220148602,0.40486494,96247.0,96246.0,0.06025975]
[1763220148792,0.38294494,96247.0,96246.0,0.06025975]
[1763220149299,0.38294494,96247.0,96246.0,0.06125975]
[1763220149493,0.36093494,96247.0,96246.0,0.06125975]
[1763220149704,0.40486494,96247.0,96246.0,0.06125975]
[1763220150304,0.40486494,96247.0,96246.0,0.00225975]
[1763220150497,0.04393,96224.0,96223.0,0.40568]
[1763220150698,0.04403299,96224.0,96223.0,0.04488]
[1763220151607,0.04303299,96224.0,96223.0,0.04488]
[1763220152106,0.04303299,96224.0,96223.0,0.04588]
[1763220153304,0.00010299,96224.0,96223.0,0.04588]
[1763220153502,0.00010299,96224.0,96223.0,0.04788]
[1763220154304,0.02211299,96224.0,96223.0,0.04788]
[1763220157403,0.00010299,96224.0,96223.0,0.04788]
[1763220157704,0.00010299,96224.0,96223.0,0.40868]
[1763220160108,0.04403299,96224.0,96223.0,0.40868]
[1763220160508,0.04403299,96224.0,96223.0,0.04788]
[1763220162104,0.00010299,96224.0,96223.0,0.04788]
[1763220162503,0.02211299,96224.0,96223.0,0.04788]
[1763220163004,0.04403299,96224.0,96223.0,0.04788]
[1763220163310,0.00010299,96224.0,96223.0,0.04788]
[1763220165206,0.02211299,96224.0,96223.0,0.04788]
[1763220165398,0.04403299,96224.0,96223.0,0.04788]
[1763220165611,0.02211299,96224.0,96223.0,0.04788]
[1763220166913,0.00010299,96224.0,96223.0,0.04788]
[1763220168313,0.00010299,96224.0,96223.0,0.04688]
[1763220168513,0.00010299,96224.0,96223.0,0.04488]
[1763220168714,0.00010299,96224.0,96223.0,0.04588]
[1763220171314,0.02335278,96224.0,96223.0,0.04588]
[1763220171607,0.04536278,96224.0,96223.0,0.04588]
[1763220171812,0.06728278,96224.0,96223.0,0.04588]
[1763220176320,0.06728278,96224.0,96223.0,0.0234]
[1763220176817,0.06728278,96224.0,96223.0,0.04588]
[1763220178413,0.06728278,96224.0,96223.0,0.04488]
[1763220178712,0.06728278,96224.0,96223.0,0.04588]
[1763220179322,0.02335278,96224.0,96223.0,0.04588]
[1763220179621,0.06765278,96224.0,96223.0,0.04588]
[1763220181815,0.02340394,96224.0,96223.0,0.04588]
[1763220182422,0.06770394,96224.0,96223.0,0.04588]
[1763220183126,0.02340394,96224.0,96223.0,0.04588]
[1763220183327,0.04510394,96224.0,96223.0,0.04588]
[1763220183922,0.02340394,96224.0,96223.0,0.04588]
[1763220184119,0.04510394,96224.0,96223.0,0.04588]
[1763220184523,0.02340394,96224.0,96223.0,0.04588]
[1763220185123,0.02340394,96224.0,96223.0,0.04488]
[1763220185322,0.02340394,96224.0,96223.0,0.04588]
[1763220185922,0.06770394,96224.0,96223.0,0.04488]
[1763220186129,0.06770394,96224.0,96223.0,0.04588]
[1763220186428,0.04510394,96224.0,96223.0,0.04588]
[1763220186626,0.02340394,96224.0,96223.0,0.04588]
[1763220189218,0.04510394,96224.0,96223.0,0.04588]
[1763220190330,0.02340394,96224.0,96223.0,0.04588]
[1763220190724,0.00015585,96233.0,96232.0,0.0446]
[1763220191028,0.04445585,96233.0,96232.0,0.0446]
[1763220191431,0.00015585,96233.0,96232.0,0.0446]
[1763220191635,0.00021811,96233.0,96232.0,0.0446]
[1763220192634,0.00021811,96233.0,96232.0,0.0456]
[1763220194224,0.12503324,96250.0,96249.0,0.04349]
[1763220194429,0.04614803,96250.0,96249.0,0.04349]
[1763220195237,0.00219803,96250.0,96249.0,0.04349]
[1763220195628,0.02345803,96250.0,96249.0,0.04349]
[1763220195824,0.04614803,96250.0,96249.0,0.04349]
[1763220196931,0.00219803,96250.0,96249.0,0.04349]
[1763220197142,0.00219803,96250.0,96249.0,0.40429]
[1763220197629,0.04410585,96259.0,96258.0,0.04349]
[1763220197824,0.04410585,96259.0,96258.0,0.05624]
[1763220199627,0.04410585,96259.0,96258.0,0.04349]
[1763220202433,0.04410585,96259.0,96258.0,0.02107]
[1763220202639,0.04410585,96259.0,96249.0,0.40429]
[1763220202640,0.04395,96250.0,96249.0,0.40429]
[1763220202840,0.04614803,96250.0,96249.0,0.40429]
[1763220207843,0.00219803,96250.0,96249.0,0.40429]
[1763220208133,0.04469803,96250.0,96249.0,0.40429]
[1763220211640,0.00219803,96250.0,96249.0,0.40429]
[1763220211831,0.00015585,96259.0,96258.0,0.05656]
[1763220213646,0.00015585,96259.0,96258.0,0.41736]
[1763220219039,0.04467585,96259.0,96258.0,0.41736]
[1763220219441,0.00015585,96259.0,96258.0,0.41736]
[1763220221648,0.48640324,96280.0,96279.0,0.0434]
[1763220221946,0.43009138,96280.0,96279.0,0.0434]
[1763220223148,0.43209138,96280.0,96279.0,0.0434]
[1763220223739,0.07129138,96280.0,96279.0,0.0434]
[1763220224438,0.05005138,96280.0,96279.0,0.0434]
[1763220224644,0.07129138,96280.0,96279.0,0.0434]
[1763220225150,0.07029138,96280.0,96279.0,0.0434]
[1763220225350,0.07129138,96280.0,96279.0,0.0434]
[1763220226249,0.07029138,96280.0,96279.0,0.0434]
[1763220226452,0.07129138,96280.0,96279.0,0.0434]
[1763220229151,0.04871803,96280.0,96279.0,0.0434]
[1763220229755,0.07127539,96280.0,96279.0,0.0434]
[1763220237459,0.04452,96271.0,96270.0,0.04355585]
[1763220238960,0.04552,96271.0,96270.0,0.05708585]
[1763220240267,0.04552,96271.0,96270.0,0.04355585]
[1763220242667,0.04552,96271.0,96270.0,0.05708585]
[1763220244371,0.04552,96271.0,96270.0,0.00015585]